Cogmind - Beta 15 --- EXPLORER MODE // 2025.05.10 @ 14:40:50 Player: Jack Result: Escaped! Performance ------------- Evolutions (9) 4500 Regions Visited (21) 4200 Robots Destroyed (155) 775 Value Destroyed (5938) 5938 Prototype IDs (36) 720 Alien Tech Used (1) 200 Bonus (5302) 5302 TOTAL SCORE: 21635 Bonus ------- Follower Combat Kills 1307 Aligned with FarCom 300 Met Zhirov 300 Built Enhanced Grunts 300 A7 Reached Mainframe 300 Win 3000 Friendly Fire -205 Cogmind --------- Core Integrity 1409/1600 Matter 177/300 Energy 169/170 System Corruption 7% Temperature Cool (3) Movement Flying (35) Location To Epsilon Eridani Parts ------- > --- POWER (1) -------- Light Antimatter Reactor > --- PROPULSION (5) --- Cooled Nuclear Pulse Thruster Impulse Thruster Array Impulse Thruster Array > --- UTILITY (18) ----- Structural Scanner (fused) Advanced Visual Processing Unit Enhanced Optical Array Advanced Signal Interpreter Improved Targeting Computer Improved Targeting Computer Advanced Targeting Computer Advanced Targeting Computer Advanced Targeting Computer Advanced Targeting Computer Advanced Targeting Computer Improved Armor Integrity Analyzer Hacking Suite Improved System Shield > --- WEAPON (2) ------- Axe > --- INVENTORY (5) ---- Xenon Bombardment Thruster Xenon Bombardment Thruster Linear Accelerator Compact Mass Driver Lance Peak State ------------ > --- POWER ------------ Light Antimatter Reactor > --- PROPULSION ------- Cooled Nuclear Pulse Thruster Q-thruster Q-thruster Impulse Thruster Array > --- UTILITY ---------- Structural Scanner Advanced Visual Processing Unit Enhanced Optical Array Advanced Signal Interpreter Improved Targeting Computer Improved Targeting Computer Improved Targeting Computer Advanced Targeting Computer Advanced Targeting Computer Advanced Targeting Computer Advanced Targeting Computer Advanced Targeting Computer Improved Armor Integrity Analyzer Layered Light Armor Plating Hacking Suite Advanced Hacking Suite Improved System Shield > --- WEAPON ----------- Enhanced Hardcell Cannon Axe > --- INVENTORY -------- Impulse Thruster Array Linear Accelerator Compact Mass Driver Lance [Rating: 121] Favorites ----------- Power Light Nuclear Core Engine Light Ion Engine Power Core Light Nuclear Core Reactor Light Antimatter Reactor Propulsion Xenon Bombardment Thruster Flight Unit Xenon Bombardment Thruster Utility Advanced Targeting Computer Device Structural Scanner Processor Advanced Targeting Computer Hackware Hacking Suite Protection Layered Light Armor Plating Weapon Axe Energy Gun Small Laser Ballistic Gun Heavy Assault Rifle Ballistic Cannon Enhanced Gauss Cannon Special Weapon Field Lobotomy Kit Slashing Weapon Axe Build | -11 -10 -10 -9 -9 -9 -8 -8 -7 -6 -5 -5 -5 -5 -4 -4 -4 -4 -3 -3 -2 -1 ------- Run | Yrd Mat Min Mat Min Exi Min Mat Fac Fac Fac Ext Cet Arc Fac Upp Upp Zhi Pro Res Res Acc Slots Evolved 19 | . 1 . 2 . . . 2 2 2 2 . . . 2 . . . . 2 2 2 Power . | . . . . . . . . . . . . . . . . . . . . . . Propulsion 3 | . 1 . 1 . . . . . . . . . . . . . . . . . 1 Utility 16 | . . . 1 . . . 2 2 2 2 . . . 2 . . . . 2 2 1 Weapon . | . . . . . . . . . . . . . . . . . . . . . . Parts Attached 87 | 2 . 3 3 6 . . . 20 8 7 3 . . 3 2 1 . 3 14 7 5 Power 10 | . . 1 . 1 . . . 2 . . 2 . . . . . . . 3 . 1 Engine 4 | . . 1 . 1 . . . . . . . . . . . . . . 2 . . Core 4 | . . . . . . . . 2 . . 2 . . . . . . . . . . Reactor 2 | . . . . . . . . . . . . . . . . . . . 1 . 1 Propulsion 35 | . . 2 2 5 . . . 6 4 2 1 . . 1 . . . 3 3 3 3 Treads . | . . . . . . . . . . . . . . . . . . . . . . Leg . | . . . . . . . . . . . . . . . . . . . . . . Wheel . | . . . . . . . . . . . . . . . . . . . . . . Hover . | . . . . . . . . . . . . . . . . . . . . . . Flight 35 | . . 2 2 5 . . . 6 4 2 1 . . 1 . . . 3 3 3 3 Utility 28 | . . . . . . . . 8 2 4 . . . 2 2 1 . . 6 2 1 Device 3 | . . . . . . . . 1 . . . . . . 1 . . . 1 . . Storage . | . . . . . . . . . . . . . . . . . . . . . . Processor 13 | . . . . . . . . 4 1 . . . . . 1 1 . . 5 1 . Hackware 11 | . . . . . . . . 3 1 4 . . . 2 . . . . . . 1 Protection 1 | . . . . . . . . . . . . . . . . . . . . 1 . Artifact . | . . . . . . . . . . . . . . . . . . . . . . Weapon 14 | 2 . . 1 . . . . 4 2 1 . . . . . . . . 2 2 . Energy Gun 4 | 2 . . . . . . . 1 1 . . . . . . . . . . . . Energy Cannon . | . . . . . . . . . . . . . . . . . . . . . . Ballistic Gun 1 | . . . 1 . . . . . . . . . . . . . . . . . . Ballistic Cannon 6 | . . . . . . . . 1 1 1 . . . . . . . . 2 1 . Launcher . | . . . . . . . . . . . . . . . . . . . . . . Special Weapon 1 | . . . . . . . . 1 . . . . . . . . . . . . . Impact Weapon . | . . . . . . . . . . . . . . . . . . . . . . Slashing Weapon 2 | . . . . . . . . 1 . . . . . . . . . . . 1 . Piercing Weapon . | . . . . . . . . . . . . . . . . . . . . . . Special Melee Weapon . | . . . . . . . . . . . . . . . . . . . . . . Unidentified Prototypes 4 | . . . . . . . . . 1 . . . . . . . 1 . 1 . 1 Corrupted Parts 1 | . . . . . . . . . 1 . . . . . . . . . . . . System Corruption 3 | . . . . . . . . . 3 . . . . . . . . . . . . Parts Lost 25 | . . . 5 . . . . 1 . 1 . . . . . 1 . . 7 3 7 Power 4 | . . . 1 . . . . . . . . . . . . . . . 1 1 1 Propulsion 10 | . . . 3 . . . . 1 . 1 . . . . . . . . 1 2 2 Utility 8 | . . . . . . . . . . . . . . . . 1 . . 4 . 3 Weapon 3 | . . . 1 . . . . . . . . . . . . . . . 1 . 1 Highest Loss Streak 5 | . . . 5 . . . . 1 . 1 . . . . . 1 . . 2 2 4 To Critical Strikes 1 | . . . . . . . . . . . . . . . . . . . 1 . . Average Backups 4 | . 1 1 2 2 4 5 5 4 5 3 5 5 5 4 3 4 5 5 4 4 4 Power . | . . . . . . . . . . . . . . . . . . . . . . Propulsion . | . . . . . 2 2 2 1 . . . . . . . 2 2 2 . 1 1 Utility . | . . . . . . . . . 2 . 2 2 2 1 1 . 1 1 . . . Weapon 2 | . 1 1 2 2 2 2 2 2 2 2 2 2 2 1 1 1 1 1 3 3 2 Tool/Special . | . . . . . . . . . . . . . . . . . . . . . . Unused Backups 9 | . . . . . . . . 2 . . . . . . . . . 1 1 1 4 Power . | . . . . . . . . . . . . . . . . . . . . . . Propulsion 4 | . . . . . . . . . . . . . . . . . . 1 1 . 2 Utility . | . . . . . . . . . . . . . . . . . . . . . . Weapon 5 | . . . . . . . . 2 . . . . . . . . . . . 1 2 Tool/Special . | . . . . . . . . . . . . . . . . . . . . . . Average Slot Usage (%) 88 | . 25 46 46 53 70 70 58 80 97 96 100 100 100 96 94 95 95 95 89 87 87 Engine 1 | . . 6 8 3 10 10 8 2 . . . . . . . . . . . 3 . Core 3 | . . . . . . . . 4 5 5 5 5 5 4 5 5 5 5 3 . . Flight 20 | . . 15 19 30 40 40 33 27 25 21 22 22 22 18 15 15 15 15 13 11 14 Device 5 | . . . . . . . . 2 6 5 5 5 5 5 9 10 10 10 9 4 3 Processor 27 | . . . . . . . . 15 30 27 27 27 27 25 29 31 35 35 38 46 45 Hackware 17 | . . . . . . . . 13 16 24 27 27 27 33 25 23 20 20 14 8 9 Energy Gun 1 | . 25 25 18 10 10 10 8 1 2 . . . . . . . . . . . . Ballistic Cannon 4 | . . . . . . . . 5 3 4 5 5 5 5 5 5 5 5 4 4 2 Slashing Weapon 4 | . . . . . . . . 4 6 5 5 5 5 5 5 5 5 5 3 3 3 Peak Build Rating 121 | 2 2 5 6 8 9 9 9 40 53 64 67 61 61 79 84 88 88 88 98 103 121 Average Rating 62 | 1 2 3 4 6 8 9 9 28 49 59 61 61 61 70 83 84 87 87 89 97 112 On Entrance 45 | . 2 2 5 4 8 9 9 9 40 51 64 61 61 61 79 84 88 88 86 87 103 Naked Turns . | . . . . . . . . . . . . . . . . . . . . . . Heaviest Build 33 | 3 3 6 6 7 7 7 7 14 14 18 18 18 18 18 20 20 20 20 23 24 33 Greatest Support 38 | 3 3 8 12 16 16 16 16 18 20 23 23 21 21 26 26 26 26 26 29 32 38 Greatest Overweight (x) 1 | . . . . . . . . . . . . . . . . . . . . . 1 Average Overweight (x) . | . . . . . . . . . . . . . . . . . . . . . . Largest Inventory Capacity 5 | 5 5 5 5 5 5 5 5 5 5 5 5 5 5 5 5 5 5 5 5 5 5 Average Capacity 5 | 5 5 5 5 5 5 5 5 5 5 5 5 5 5 5 5 5 5 5 5 5 5 Most Carried 5 | 1 1 2 2 4 5 5 5 5 5 5 5 5 5 5 5 5 5 5 5 5 5 Average Carried 4 | . 1 1 2 2 4 5 5 4 5 3 5 5 5 4 3 4 5 5 4 4 4 Final Capacity 5 | 5 5 5 5 5 5 5 5 5 5 5 5 5 5 5 5 5 5 5 5 5 5 Final Carried 5 | 1 1 2 2 4 5 5 5 5 5 5 5 5 5 5 5 5 5 5 5 4 5 Class Distribution -------------------- 45% | Wizard-Scout 28% | Hacker-Scout 16% | Hacker-Sprinter 4% | Hacker-Mutant 3% | Scavenger-Sprinter Dominant Class ---------------- Hacker-Mutant | -10/Materials Hacker-Mutant | -10/Mines Hacker-Mutant | -9/Materials Scavenger-Sprinter | -9/Mines Scavenger-Sprinter | -9/Exiles Scavenger-Sprinter | -8/Mines Scavenger-Sprinter | -8/Materials Hacker-Sprinter | -7/Factory Hacker-Scout | -6/Factory Wizard-Scout | -5/Factory Wizard-Scout | -5/Extension Wizard-Scout | -5/Cetus Wizard-Scout | -5/Archives Wizard-Scout | -4/Factory Wizard-Scout | -4/Upper Caves Wizard-Scout | -4/Upper Caves Wizard-Scout | -4/Zhirov Wizard-Scout | -3/Proximity Caves Hacker-Scout | -3/Research Hacker-Scout | -2/Research Hacker-Scout | -1/Access Resources | -11 -10 -10 -9 -9 -9 -8 -8 -7 -6 -5 -5 -5 -5 -4 -4 -4 -4 -3 -3 -2 -1 ----------- Run | Yrd Mat Min Mat Min Exi Min Mat Fac Fac Fac Ext Cet Arc Fac Upp Upp Zhi Pro Res Res Acc Matter Collected 4921 | 124 . 60 55 75 . 23 . 790 178 628 532 95 55 57 83 289 49 138 986 281 423 Remotely . | . . . . . . . . . . . . . . . . . . . . . . Salvage Created 5334 | . . 60 73 75 . . . 965 331 507 376 29 . 149 44 92 445 50 1074 606 458 Parts 270 | . . 5 7 11 . . . 53 25 16 16 2 . 15 3 3 3 5 43 36 27 Haulers Intercepted . | . . . . . . . . . . . . . . . . . . . . . . Recyclers Shooed 6 | . . . . . . . . . . . 1 . . . . . . . 3 2 . Parts Field Recycled . | . . . . . . . . . . . . . . . . . . . . . . Retrieved Matter . | . . . . . . . . . . . . . . . . . . . . . . Parts Self-Destructed . | . . . . . . . . . . . . . . . . . . . . . . Prevented . | . . . . . . . . . . . . . . . . . . . . . . Kills | -11 -10 -10 -9 -9 -9 -8 -8 -7 -6 -5 -5 -5 -5 -4 -4 -4 -4 -3 -3 -2 -1 ------- Run | Yrd Mat Min Mat Min Exi Min Mat Fac Fac Fac Ext Cet Arc Fac Upp Upp Zhi Pro Res Res Acc Combat Hostiles Destroyed 98 | . . 4 2 3 . . . 21 8 9 5 . . 2 3 3 . 2 15 7 14 Melee 1 | . . . . . . . . . . . . . . . . . . . . . 1 Guns 8 | . . 4 1 3 . . . . . . . . . . . . . . . . . Cannons 88 | . . . . . . . . 21 8 9 5 . . 2 3 3 . 2 15 7 13 AOE 1 | . . . 1 . . . . . . . . . . . . . . . . . . Classes Destroyed 14 | . . 1 1 1 . . . 9 1 . 1 . . . . . . . . . . Worker 13 | . . . . . . . . 4 2 . . . . 1 . . . . 4 1 1 Builder 9 | . . . . 1 . . . 3 . 1 1 . . . . . . . 1 2 . Tunneler 2 | . . . . . . . . 1 . . . . . . . . . . 1 . . Recycler 6 | . . . . . . . . 2 . 1 1 . . . . . . . 1 1 . Operator 7 | . . . . . . . . 2 1 . 1 . . 2 . . . . . . 1 Watcher 20 | . . . . . . . . 3 1 4 3 1 . 1 . . . . 3 4 . Swarmer 37 | . . 4 1 3 . . . 8 5 . 1 . . . 3 . . 2 . . 10 Grunt 25 | . . . . . . . . 7 . 4 2 . . . . . . . 5 3 4 Brawler 1 | . . . . . . . . 1 . . . . . . . . . . . . . Duelist 2 | . . . . . . . . 1 . 1 . . . . . . . . . . . Sentry 11 | . . . 1 . . . . 2 2 1 1 . . 1 . . . . 2 1 . Hunter 5 | . . . . . . . . . 1 . . . . . . 2 . . 2 . . Programmer 16 | . . . . . . . . 2 . 3 . . . 1 . 1 . . 6 3 . Behemoth 1 | . . . . . . . . . . . 1 . . . . . . . . . . Best Kill Streak 7 | . . 2 1 3 . . . 6 4 3 4 1 . 3 3 2 . 2 4 5 7 Combat Bots Only 7 | . . 2 1 2 . . . 3 4 2 2 . . 1 3 2 . 2 2 3 7 Max Kills in Single Turn 1 | . . 1 1 1 . . . 1 1 1 1 1 . 1 1 1 . 1 1 1 1 Gunslinging . | . . . . . . . . . . . . . . . . . . . . . . Exploded 1 | . . . 1 . . . . . . . . . . . . . . . . . . Melee 1 | . . . . . . . . . . . . . . . . . . . . . 1 Uniques/NPCs Destroyed . | . . . . . . . . . . . . . . . . . . . . . . Combat | -11 -10 -10 -9 -9 -9 -8 -8 -7 -6 -5 -5 -5 -5 -4 -4 -4 -4 -3 -3 -2 -1 -------- Run | Yrd Mat Min Mat Min Exi Min Mat Fac Fac Fac Ext Cet Arc Fac Upp Upp Zhi Pro Res Res Acc Hostile Shots Fired 533 | . . 12 63 8 . 8 5 28 22 43 15 2 . 15 . 17 . 18 129 62 86 Missed 278 | . . 5 27 6 . 6 5 19 10 24 5 2 . 8 . 8 . 12 74 25 42 Hits 255 | . . 7 36 2 . 2 . 9 12 19 10 . . 7 . 9 . 6 55 37 44 Projectile 255 | . . 7 36 2 . 2 . 9 12 19 10 . . 7 . 9 . 6 55 37 44 AOE 1 | . . . . . . . . . . 1 . . . . . . . . . . . Critical Strikes 9 | . . . 1 . . . . . . 1 1 1 . . . . . . 4 . 1 Part Disruptions 2 | . . . . . . . . . . . . . . . . . . . 1 1 . Damage Taken 3205 | . . 36 264 11 . 17 . 165 108 272 126 7 . 64 . 98 . 60 740 552 685 Core 765 | . . 8 84 6 . 7 . 46 17 27 51 . . 17 . . . 34 214 63 191 Absorbed by Shields 95 | . . . . . . . . . . . 88 7 . . . . . . . . . Ignored by Resistances 1975 | . . 28 173 8 . 10 . 103 66 158 124 9 . 40 . 57 . 36 441 324 398 Regen/Repaired (Parts) 282 | . . . . . . . . 15 123 55 . . . 33 . . . . 56 . . Core Remaining (%) 92 | 100 . 96 . . . 75 100 93 98 . . . 92 . . . . 95 83 95 88 Volleys Fired 602 | . . 5 6 6 . . . 108 39 81 66 16 2 21 12 26 . 26 96 52 40 Largest 2 | . . 2 2 2 . . . 2 1 1 1 1 1 1 1 1 . 1 1 1 1 Hottest 80 | . . 80 80 63 . . . 63 60 60 47 47 47 47 47 47 . 47 54 58 58 Shots Fired 624 | . . 10 11 12 . . . 115 39 81 66 16 2 21 12 26 . 26 96 51 40 Gun 66 | . . 10 11 12 . . . 18 11 4 . . . . . . . . . . . Cannon 553 | . . . . . . . . 96 28 77 66 16 2 21 12 26 . 26 92 51 40 Launcher . | . . . . . . . . . . . . . . . . . . . . . . Special 5 | . . . . . . . . 1 . . . . . . . . . . 4 . . Kinetic 565 | . . . . 6 . . . 102 28 77 66 16 2 21 12 26 . 26 92 51 40 Thermal 23 | . . 5 6 6 . . . 6 . . . . . . . . . . . . . Explosive . | . . . . . . . . . . . . . . . . . . . . . . Electromagnetic 31 | . . 5 5 . . . . 6 11 4 . . . . . . . . . . . Robot Hit Streak 74 | . . 4 5 7 . . . 60 74 29 32 25 7 14 7 13 . 6 26 27 59 Robot Miss Streak 2 | . . 1 1 2 . . . 2 1 1 2 1 1 1 . 1 . . 1 1 1 Penetration Max 1 | . . . . . . . . . . . 1 . . 1 . . . . 1 . . Secondary Targets . | . . . . . . . . . . . . . . . . . . . . . . Shots Hit Robots 569 | . . 4 8 8 . . . 110 35 75 68 15 1 19 6 20 7 4 92 55 42 Core Hits 250 | . . 4 3 4 . . . 50 20 26 26 5 . 10 3 10 4 2 41 21 21 Critical Kills . | . . . . . . . . . . . . . . . . . . . . . . Critical Parts Destroyed . | . . . . . . . . . . . . . . . . . . . . . . Critical Strikes 50 | . . . . . . . . 5 . 4 12 1 . 2 2 6 . 1 10 1 6 Blast 44 | . . . . . . . . 4 . 3 10 1 . 2 2 6 . 1 10 1 4 Sever 6 | . . . . . . . . 1 . 1 2 . . . . . . . . . 2 Melee Attacks 154 | . . . . . . . . 30 5 17 6 . . 9 3 . 7 . 47 14 16 Impact . | . . . . . . . . . . . . . . . . . . . . . . Slashing 154 | . . . . . . . . 30 5 17 6 . . 9 3 . 7 . 47 14 16 Piercing . | . . . . . . . . . . . . . . . . . . . . . . Sneak Attacks 22 | . . . . . . . . 4 . 2 2 . . . . . . . 9 4 1 Combat Hostiles . | . . . . . . . . . . . . . . . . . . . . . . Follow-up Attacks . | . . . . . . . . . . . . . . . . . . . . . . Damage Inflicted 19683 | . . 46 146 100 . . . 3023 869 2215 2437 503 71 721 97 605 492 102 3899 2584 1773 Guns 823 | . . 46 89 100 . . . 225 205 158 . . . . . . . . . . . Cannons 15799 | . . . . . . . . 2273 625 1828 2144 503 71 721 97 605 . 102 3195 2076 1559 Explosions 96 | . . . 57 . . . . . 39 . . . . . . . . . . . . Melee 2965 | . . . . . . . . 525 . 229 293 . . . . . 492 . 704 508 214 Ramming . | . . . . . . . . . . . . . . . . . . . . . . Kinetic 15883 | . . . . 45 . . . 2312 625 1828 2144 503 71 721 97 605 . 102 3195 2076 1559 Thermal 271 | . . 11 98 55 . . . 68 39 . . . . . . . . . . . . Explosive . | . . . . . . . . . . . . . . . . . . . . . . Electromagnetic 564 | . . 35 48 . . . . 118 205 158 . . . . . . . . . . . Impact . | . . . . . . . . . . . . . . . . . . . . . . Slashing 2965 | . . . . . . . . 525 . 229 293 . . . . . 492 . 704 508 214 Piercing . | . . . . . . . . . . . . . . . . . . . . . . Highest Corruption 7 | . . . . . . . . 1 4 2 2 2 2 . . . . . 5 1 7 Average Corruption 2 | . . . . . . . . 1 3 1 2 2 2 . . . . . 4 1 5 Corruption Purged . | . . . . . . . . . . . . . . . . . . . . . . Corruption Blocked . | . . . . . . . . . . . . . . . . . . . . . . Effects 57 | . . . . . . . . 11 6 9 10 3 3 . . . . . 11 2 2 Message Errors 17 | . . . . . . . . 4 2 1 4 . . . . . . . 5 1 . Matter Fused 14 | . . . . . . . . 4 1 4 2 1 1 . . . . . . . 1 Heat Flow Errors 2 | . . . . . . . . 1 . . . . . . . . . . 1 . . Energy Discharges 4 | . . . . . . . . 1 . . . 1 2 . . . . . . . . Parts Rejected 1 | . . . . . . . . . . 1 . . . . . . . . . . . Parts Fused 1 | . . . . . . . . . . 1 . . . . . . . . . . . Data Loss (minor) 7 | . . . . . . . . . 3 . 1 1 . . . . . . 2 . . Data Loss (major) 4 | . . . . . . . . . . 1 1 . . . . . . . 1 . 1 Misfires 1 | . . . . . . . . 1 . . . . . . . . . . . . . Alerts 5 | . . . . . . . . . . 1 2 . . . . . . . 2 . . Weapon Failures 1 | . . . . . . . . . . . . . . . . . . . . 1 . Overload Shots . | . . . . . . . . . . . . . . . . . . . . . . Overflow Damage 1226 | . . . . . . . . 139 . 163 103 . . 57 . 33 162 . 277 272 20 Projectiles 466 | . . . . . . . . 31 . 87 72 . . 57 . 33 . . 47 119 20 Explosions . | . . . . . . . . . . . . . . . . . . . . . . Melee 760 | . . . . . . . . 108 . 76 31 . . . . . 162 . 230 153 . Knockbacks 43 | . . . . . . . . 2 1 8 2 . . 4 . . . . 8 15 3 Impact . | . . . . . . . . . . . . . . . . . . . . . . Kinetic 42 | . . . . . . . . 2 1 8 2 . . 4 . . . . 8 14 3 Secondary 1 | . . . . . . . . . . . . . . . . . . . . 1 . Self-Inflicted Damage 24 | . . . 24 . . . . . . . . . . . . . . . . . . Shots 1 | . . . 1 . . . . . . . . . . . . . . . . . . Rammed . | . . . . . . . . . . . . . . . . . . . . . . Targets Rammed . | . . . . . . . . . . . . . . . . . . . . . . Kicked . | . . . . . . . . . . . . . . . . . . . . . . Crushed . | . . . . . . . . . . . . . . . . . . . . . . Highest Temperature 238 | . . 31 41 15 . . . 101 32 20 8 4 . 1 . 2 . 2 238 6 52 Average Temperature 17 | . . 12 22 5 . . . 22 12 8 2 4 . 1 . 2 . 2 48 2 16 Received Heat Transfer 427 | . . 12 117 . . . . . . 18 25 . . . . 9 . 9 75 72 90 Siege Activations . | . . . . . . . . . . . . . . . . . . . . . . Martial Activations . | . . . . . . . . . . . . . . . . . . . . . . Shielding Activations . | . . . . . . . . . . . . . . . . . . . . . . Robots Disrupted 2 | . . . . . . . . 1 1 . . . . . . . . . . . . Combat Hostiles . | . . . . . . . . . . . . . . . . . . . . . . Robots Corrupted 1 | . . . . . . . . 1 . . . . . . . . . . . . . Combat Hostiles . | . . . . . . . . . . . . . . . . . . . . . . Parts Fried 3 | . . . . . . . . 1 . 2 . . . . . . . . . . . Impact Corruptions . | . . . . . . . . . . . . . . . . . . . . . . Robots Melted . | . . . . . . . . . . . . . . . . . . . . . . Combat Hostiles . | . . . . . . . . . . . . . . . . . . . . . . Parts Melted . | . . . . . . . . . . . . . . . . . . . . . . Heat Transferred 550 | . . 25 150 125 . . . 150 100 . . . . . . . . . . . . Parts Sabotaged . | . . . . . . . . . . . . . . . . . . . . . . Parts Stolen . | . . . . . . . . . . . . . . . . . . . . . . Parts Stripped . | . . . . . . . . . . . . . . . . . . . . . . Power Chain Reactions 3 | . . . 1 . . . . . 1 . . . . . . . . . . 1 . Alert | -11 -10 -10 -9 -9 -9 -8 -8 -7 -6 -5 -5 -5 -5 -4 -4 -4 -4 -3 -3 -2 -1 ------- Run | Yrd Mat Min Mat Min Exi Min Mat Fac Fac Fac Ext Cet Arc Fac Upp Upp Zhi Pro Res Res Acc Maximum Alert Level 1 | . . . . . . . . . . . 1 . . 1 . . . . 1 . . Low Security (%) 98 | 100 100 100 100 100 . 100 100 100 100 100 93 100 100 85 . . . . 99 100 100 Level 1 1 | . . . . . . . . . . . 6 . . 14 . . . . . . . Level 2 . | . . . . . . . . . . . . . . . . . . . . . . Level 3 . | . . . . . . . . . . . . . . . . . . . . . . Level 4 . | . . . . . . . . . . . . . . . . . . . . . . Level 5 . | . . . . . . . . . . . . . . . . . . . . . . High Security . | . . . . . . . . . . . . . . . . . . . . . . Max Security . | . . . . . . . . . . . . . . . . . . . . . . Peak Influence 233 | . . 57 153 77 . 15 7 98 121 35 233 115 62 225 . . . . 209 179 174 Initial 81 | . . . . 32 . . . . 21 . . 12 . . . . . . 41 . 81 Average 48 | . . 20 51 53 . . . 26 33 7 83 23 14 102 . . . . 65 44 104 Influence Increases 5405 | . . 102 228 90 . 15 7 768 252 329 594 120 114 397 70 90 15 170 1025 493 526 Destroy 0b10 Robot/C 2600 | . . 80 40 60 . . . 440 160 180 360 80 80 200 60 60 . 40 340 140 280 Destroy 0b10 Robot/NC 335 | . . . . 5 . . . 80 20 30 50 5 . 35 . . 15 . 50 40 5 Destroy Leader 520 | . . 20 20 10 . . . 88 52 58 56 . . 52 10 . . 10 76 28 40 Allied During Kill 129 | . . 2 . . . . . . . . 48 25 24 25 . . . . 5 . . Successful Hack 96 | . . . . . . . 7 6 . 16 18 2 . . . . . . . 17 30 Select Force Hacks 50 | . . . . . . . . . . . . . . . . . . . . 50 . Disable Machine 20 | . . . . . . . . . . . . . 8 4 . . . . . 8 . Destroy Structure 305 | . . . 3 . . . . 19 5 30 32 8 2 36 . . . . 104 30 36 Partial Spotted 225 | . . . 15 . . 15 . 75 15 . . . . . . . . . 75 30 . Lose Combat Pursuer 1125 | . . . 150 15 . . . 60 . 15 30 . . 45 . 30 . 120 375 150 135 Influence Decreases 5273 | . . 102 110 176 32 15 7 709 311 329 563 151 114 331 111 115 15 90 1105 314 573 Entered New Map 356 | . . . . 86 32 . . . 38 . . 19 . . 35 9 . . 39 . 98 Time Decay 4452 | . . 102 60 90 . 15 7 679 273 329 543 132 74 276 76 106 15 90 896 284 405 Lost Part 220 | . . . 50 . . . . . . . . . . . . . . . 70 30 70 Lost Ally 245 | . . . . . . . . 30 . . 20 . 40 55 . . . . 100 . . Squads Dispatched 48 | . . . 1 . . . 1 12 3 5 2 . . 1 . . . . 12 4 7 Investigation 10 | . . . . . . . . 4 1 1 1 . . . . . . . 1 1 1 Extermination 19 | . . . . . . . . 4 2 2 . . . 1 . . . . 5 3 2 Reinforcement 9 | . . . 1 . . . 1 1 . 2 1 . . . . . . . 2 . 1 Assault 1 | . . . . . . . . . . . . . . . . . . . 1 . . Garrison 9 | . . . . . . . . 3 . . . . . . . . . . 3 . 3 Intercept . | . . . . . . . . . . . . . . . . . . . . . . Searches Triggered . | . . . . . . . . . . . . . . . . . . . . . . Construction Impeded 2 | . . . . . . . . . . . 1 . . . . . . . 1 . . Haulers Reinforced . | . . . . . . . . . . . . . . . . . . . . . . Active Scanning Responses . | . . . . . . . . . . . . . . . . . . . . . . Cargo Convoy Interrupts . | . . . . . . . . . . . . . . . . . . . . . . Stealth | -11 -10 -10 -9 -9 -9 -8 -8 -7 -6 -5 -5 -5 -5 -4 -4 -4 -4 -3 -3 -2 -1 --------- Run | Yrd Mat Min Mat Min Exi Min Mat Fac Fac Fac Ext Cet Arc Fac Upp Upp Zhi Pro Res Res Acc Distress Signals 18 | . . . 2 . . . . 1 1 . 1 . . 4 . . . . 7 1 1 Communications Jammed . | . . . . . . . . . . . . . . . . . . . . . . Distress Signals . | . . . . . . . . . . . . . . . . . . . . . . Times Spotted 269 | . 2 6 23 4 . 1 6 28 11 16 20 4 2 14 . 6 . 10 54 33 29 Peak Tracking Total 11 | . 2 2 11 3 . 1 5 5 3 3 3 4 1 11 . 3 . 8 8 9 9 Tactical Retreats 37 | . . . 4 1 . . . 3 . 1 2 . . 1 . 1 . 2 14 4 4 Traps | -11 -10 -10 -9 -9 -9 -8 -8 -7 -6 -5 -5 -5 -5 -4 -4 -4 -4 -3 -3 -2 -1 ------- Run | Yrd Mat Min Mat Min Exi Min Mat Fac Fac Fac Ext Cet Arc Fac Upp Upp Zhi Pro Res Res Acc Traps Triggered 16 | . . . . . . . . 6 3 . 3 . . . . . . . . 2 2 Indirectly . | . . . . . . . . . . . . . . . . . . . . . . Trap Hack Attempts . | . . . . . . . . . . . . . . . . . . . . . . Triggered . | . . . . . . . . . . . . . . . . . . . . . . Disarmed 22 | . . . . . . . . 4 . . 18 . . . . . . . . . . Reprogrammed . | . . . . . . . . . . . . . . . . . . . . . . Reused . | . . . . . . . . . . . . . . . . . . . . . . Traps Extracted . | . . . . . . . . . . . . . . . . . . . . . . Installed . | . . . . . . . . . . . . . . . . . . . . . . Triggered . | . . . . . . . . . . . . . . . . . . . . . . Machines | -11 -10 -10 -9 -9 -9 -8 -8 -7 -6 -5 -5 -5 -5 -4 -4 -4 -4 -3 -3 -2 -1 ---------- Run | Yrd Mat Min Mat Min Exi Min Mat Fac Fac Fac Ext Cet Arc Fac Upp Upp Zhi Pro Res Res Acc Machines Disabled 6 | . . . . . . . . . . . 1 . 2 1 . . . . . 2 . Max in Single Turn 1 | . . . . . . . . . . . . . . . . . . . . 1 . Garrison Access 2 | . . . . . . . . . . 1 . . . . . . . . 1 . . Machines Repaired . | . . . . . . . . . . . . . . . . . . . . . . Machines Dismantled . | . . . . . . . . . . . . . . . . . . . . . . Machines Sabotaged . | . . . . . . . . . . . . . . . . . . . . . . Overloaded Fab Kills 3 | . . . . . . . . . . . . . . . . . . . . 3 . Hacking | -11 -10 -10 -9 -9 -9 -8 -8 -7 -6 -5 -5 -5 -5 -4 -4 -4 -4 -3 -3 -2 -1 --------- Run | Yrd Mat Min Mat Min Exi Min Mat Fac Fac Fac Ext Cet Arc Fac Upp Upp Zhi Pro Res Res Acc Machines Accessed 62 | . . 1 1 . 1 . 1 8 2 10 13 3 . 5 1 1 7 . 2 4 2 Terminals 34 | . . . 1 . . . 1 4 . 6 13 3 . 3 . . . . . 1 2 Fabricators 5 | . . . . . . . . 2 . 1 . . . 1 . . . . . 1 . Repair Stations 10 | . . . . . . . . 1 2 2 . . . 1 . . . . 2 2 . Recycling Units . | . . . . . . . . . . . . . . . . . . . . . . Scanalyzers . | . . . . . . . . . . . . . . . . . . . . . . Garrison Access 2 | . . . . . . . . 1 . 1 . . . . . . . . . . . Total Hacks 141 | . . 1 3 . 1 . 1 17 7 23 13 5 . 8 1 1 46 . 5 6 3 Successful 119 | . . 1 . . 1 . 1 9 5 18 13 5 . 8 1 1 46 . 5 3 2 Failed 22 | . . . 3 . . . . 8 2 5 . . . . . . . . . 3 1 Catastrophic 1 | . . . . . . . . 1 . . . . . . . . . . . . . Database Lockouts . | . . . . . . . . . . . . . . . . . . . . . . Manual 31 | . . . 3 . 1 . 1 7 . 6 4 1 . 3 . . . . 1 2 2 Terminals 47 | . . . 3 . . . 1 7 . 10 13 5 . 3 . . . . . 2 3 Fabricators 15 | . . . . . . . . 5 . 6 . . . 2 . . . . . 2 . Repair Stations 25 | . . . . . . . . 2 7 6 . . . 3 . . . . 5 2 . Recycling Units . | . . . . . . . . . . . . . . . . . . . . . . Scanalyzers . | . . . . . . . . . . . . . . . . . . . . . . Garrison Access 4 | . . . . . . . . 3 . 1 . . . . . . . . . . . Terminal Hacks 83 | . . 1 . . 1 . 1 3 . 6 13 5 . 3 1 1 46 . . 1 1 Record 38 | . . . . . . . . . . . . 4 . . . . 34 . . . . Part Schematic 8 | . . . . . . . . 1 . 2 . . . 1 . . 4 . . . . Robot Analysis 4 | . . . . . . . . . . . . . . . . . 4 . . . . Prototype ID Bank 4 | . . . . . . . . . . . . . . . . . 4 . . . . Open Door 15 | . . 1 . . . . . . . 1 9 1 . . 1 1 . . . . 1 Level Access Points 2 | . . . . . . . 1 . . . . . . . . . . . . 1 . Branch Access Points 2 | . . . . . . . . . . 1 . . . 1 . . . . . . . Machine Index 1 | . . . . . . . . . . . . . . 1 . . . . . . . Terminal Index 1 | . . . . . . . . . . 1 . . . . . . . . . . . Fabricator Index 2 | . . . . . . . . 1 . 1 . . . . . . . . . . . Disarm Traps 5 | . . . . . . . . 1 . . 4 . . . . . . . . . . Proto ID Catalog 1 | . . . . . 1 . . . . . . . . . . . . . . . . Fabricator Hacks 8 | . . . . . . . . 2 . 4 . . . 2 . . . . . . . Load Schematic 5 | . . . . . . . . 2 . 2 . . . 1 . . . . . . . Build 3 | . . . . . . . . . . 2 . . . 1 . . . . . . . Repair Station Hacks 21 | . . . . . . . . 2 5 6 . . . 3 . . . . 4 1 . Scan Component 10 | . . . . . . . . 1 3 3 . . . 1 . . . . 2 . . Repair 9 | . . . . . . . . 1 2 3 . . . 1 . . . . 2 . . Refit 2 | . . . . . . . . . . . . . . 1 . . . . . 1 . Recycling Unit Hacks . | . . . . . . . . . . . . . . . . . . . . . . Scanalyzer . | . . . . . . . . . . . . . . . . . . . . . . Garrison Access Hacks 1 | . . . . . . . . . . 1 . . . . . . . . . . . Seal Access 1 | . . . . . . . . . . 1 . . . . . . . . . . . Unauthorized Hacks 6 | . . . . . . . . 2 . 1 . . . . . . . . 1 1 1 Terminals 1 | . . . . . . . . . . . . . . . . . . . . . 1 Assimilate 1 | . . . . . . . . . . . . . . . . . . . . . 1 Fabricators 4 | . . . . . . . . 2 . 1 . . . . . . . . . 1 . Prioritize 1 | . . . . . . . . . . 1 . . . . . . . . . . . Overload 1 | . . . . . . . . . . . . . . . . . . . . 1 . Recompile 2 | . . . . . . . . 2 . . . . . . . . . . . . . Repair Stations 1 | . . . . . . . . . . . . . . . . . . . 1 . . Patch 1 | . . . . . . . . . . . . . . . . . . . 1 . . Recycling Units . | . . . . . . . . . . . . . . . . . . . . . . Scanalyzers . | . . . . . . . . . . . . . . . . . . . . . . Garrison Access . | . . . . . . . . . . . . . . . . . . . . . . Data Cores Recovered 4 | . . . . . . . . 1 1 . 1 . . 1 . . . . . . . Used 2 | . . . . . . . . 1 . . . . . 1 . . . . . . . Hacking Detections 30 | . . . 1 . . . . 6 2 8 2 2 . 4 . . . . 1 3 1 Full Trace Events 4 | . . . 1 . . . . 1 1 1 . . . . . . . . . . . Feedback Events 1 | . . . . . . . . . 1 . . . . . . . . . . . . Corruption 1 | . . . . . . . . . 1 . . . . . . . . . . . . Feedback Blocked . | . . . . . . . . . . . . . . . . . . . . . . Robot Schematics Acquired . | . . . . . . . . . . . . . . . . . . . . . . Robots Built . | . . . . . . . . . . . . . . . . . . . . . . Authchips . | . . . . . . . . . . . . . . . . . . . . . . Time . | . . . . . . . . . . . . . . . . . . . . . . Total Robot Build Rating . | . . . . . . . . . . . . . . . . . . . . . . Part Schematics Acquired 8 | . . . . . . . . 1 . 2 . . . 1 . . 4 . . . . Parts Built 4 | . . . . . . . . . . 2 . . . 2 . . . . . . . Authchips 2 | . . . . . . . . . . 2 . . . . . . . . . . . Time 263 | . . . . . . . . . . 146 . . . 117 . . . . . . . Total Part Build Rating 20 | . . . . . . . . . . 6 . . . 14 . . . . . . . Parts Repaired 9 | . . . . . . . . 1 2 3 . . . 1 . . . . 2 . . Time 193 | . . . . . . . . 13 57 63 . . . 19 . . . . 41 . . Parts Recycled . | . . . . . . . . . . . . . . . . . . . . . . Recycled Matter . | . . . . . . . . . . . . . . . . . . . . . . Retrieved Matter . | . . . . . . . . . . . . . . . . . . . . . . Retrieved Components . | . . . . . . . . . . . . . . . . . . . . . . Parts Scanalyzed . | . . . . . . . . . . . . . . . . . . . . . . Part Schematics Acquired . | . . . . . . . . . . . . . . . . . . . . . . Parts Damaged . | . . . . . . . . . . . . . . . . . . . . . . Bothacking | -11 -10 -10 -9 -9 -9 -8 -8 -7 -6 -5 -5 -5 -5 -4 -4 -4 -4 -3 -3 -2 -1 ------------ Run | Yrd Mat Min Mat Min Exi Min Mat Fac Fac Fac Ext Cet Arc Fac Upp Upp Zhi Pro Res Res Acc Used RIF Installer . | . . . . . . . . . . . . . . . . . . . . . . Robots Hacked . | . . . . . . . . . . . . . . . . . . . . . . Non-combat . | . . . . . . . . . . . . . . . . . . . . . . Combat . | . . . . . . . . . . . . . . . . . . . . . . Robot Hacks Applied . | . . . . . . . . . . . . . . . . . . . . . . Relay Couplers Released 2 | . . . . . . . . . . . . . . . . . . . 2 . . Machine Destruction 2 | . . . . . . . . . . . . . . . . . . . 2 . . Fabnet Peak Effective % . | . . . . . . . . . . . . . . . . . . . . . . Robots Rewired . | . . . . . . . . . . . . . . . . . . . . . . Allies Hacked 3 | . . . . . . . . 1 . . . . . . . . . . 2 . . Hacks Repelled . | . . . . . . . . . . . . . . . . . . . . . . Allies | -11 -10 -10 -9 -9 -9 -8 -8 -7 -6 -5 -5 -5 -5 -4 -4 -4 -4 -3 -3 -2 -1 -------- Run | Yrd Mat Min Mat Min Exi Min Mat Fac Fac Fac Ext Cet Arc Fac Upp Upp Zhi Pro Res Res Acc Total Allies 27 | . . 2 . . . . . 2 . . 12 5 . . . . . . 5 . 1 Largest Group 16 | . . 2 . . . . . 2 . . 11 16 15 12 . . . . 4 . . Highest-Rated Group 922 | . . 42 . . . . . 50 . . 457 922 891 697 . . . . 284 . . Highest-Rated Ally 159 | . . 31 . . . . . 37 . . 159 153 153 96 . . . . 82 . . Total Orders 2 | . . . . . . . . 1 . . . . . . . . . . . . 1 STAY 2 | . . . . . . . . 1 . . . . . . . . . . . . 1 Ally Attacks 232 | . . . . . . . . 5 . . 77 26 36 66 . . . . 22 . . Total Damage 6092 | . . . . . . . . 133 . . 1928 467 574 2446 . . . . 544 . . Kills 41 | . . . . . . . . 2 . . 17 4 4 12 . . . . 2 . . Allies Corrupted 1 | . . . . . . . . . . . . . . 1 . . . . . . . Allies Melted 1 | . . . . . . . . . . . . . . 1 . . . . . . . Field Lobotomies 5 | . . . . . . . . 1 . . . . . . . . . . 4 . . Intel | -11 -10 -10 -9 -9 -9 -8 -8 -7 -6 -5 -5 -5 -5 -4 -4 -4 -4 -3 -3 -2 -1 ------- Run | Yrd Mat Min Mat Min Exi Min Mat Fac Fac Fac Ext Cet Arc Fac Upp Upp Zhi Pro Res Res Acc Active Infowar (turns) 7371 | . . . . . . . . 620 551 885 883 433 183 446 210 279 84 402 1336 519 540 Optics 6717 | . . . . . . . . . 517 885 883 433 183 446 210 279 84 402 1336 519 540 Sensors 2256 | . . . . . . . . . . . . . . . 208 279 81 402 1286 . . Structural 7371 | . . . . . . . . 620 551 885 883 433 183 446 210 279 84 402 1336 519 540 Robot Analysis Total 4 | . . . . . . . . . . . . . . . . . 4 . . . . Derelict Logs Recovered 2 | . . . . . . . . . . . . . . . 2 . . . . . . Drone Launches . | . . . . . . . . . . . . . . . . . . . . . . Drone Recoveries . | . . . . . . . . . . . . . . . . . . . . . . Exploration | -11 -10 -10 -9 -9 -9 -8 -8 -7 -6 -5 -5 -5 -5 -4 -4 -4 -4 -3 -3 -2 -1 ------------- Run | Yrd Mat Min Mat Min Exi Min Mat Fac Fac Fac Ext Cet Arc Fac Upp Upp Zhi Pro Res Res Acc Turns Passed 9016 | 19 38 204 143 122 84 103 39 1513 551 885 883 433 183 446 210 279 84 402 1336 519 540 Spaces Moved 15879 | 31 31 460 316 178 266 118 124 3171 984 1437 1009 199 120 843 470 626 172 828 2533 979 984 Core 110 | 31 31 48 . . . . . . . . . . . . . . . . . . . Treads . | . . . . . . . . . . . . . . . . . . . . . . Legs . | . . . . . . . . . . . . . . . . . . . . . . Wheels . | . . . . . . . . . . . . . . . . . . . . . . Hover . | . . . . . . . . . . . . . . . . . . . . . . Flight 15769 | . . 412 316 178 266 118 124 3171 984 1437 1009 199 120 843 470 626 172 828 2533 979 984 Fastest Speed 27 | 50 50 37 34 31 31 31 31 27 27 28 29 29 29 29 35 35 35 34 31 34 31 Average Speed 31 | 50 50 39 37 32 31 31 31 28 27 31 29 29 29 29 35 35 35 34 33 34 32 Slowest Speed 112 | 50 50 50 40 40 31 31 31 34 28 34 31 29 29 35 35 35 35 35 37 39 112 Overloaded Moves . | . . . . . . . . . . . . . . . . . . . . . . Propulsion Burnouts . | . . . . . . . . . . . . . . . . . . . . . . Robots Hopped 82 | . . 6 7 3 . 3 2 13 8 10 . . . 2 . 2 . . 9 15 2 Potential Cave-ins 9 | . . . . . . . . . . . . . . . 3 2 . 4 . . . Cave-ins Triggered . | . . . . . . . . . . . . . . . . . . . . . . Exploration Rate (%) 49 | 4 12 84 46 41 61 32 16 53 27 39 95 84 85 24 63 72 63 67 62 32 26 Regions Visited 21 Branch Regions 11 Pre-discovered Areas 3 | . . . . . . . . . . . . . . . . . 3 . . . . Known Exits Taken 21 | 1 1 1 1 1 1 1 1 1 1 1 1 1 1 1 1 1 1 1 1 1 . Unknown Exits Taken . | . . . . . . . . . . . . . . . . . . . . . . Scrap Searched 1 | . . . . . . . . . . . . . . . . 1 . . . . . Spaces Dug 116 | . . . . . . . . 18 5 13 . . . 9 4 2 . 6 42 5 12 Terrain Destroyed 180 | . . . 2 . . . . 18 5 13 3 2 . 14 15 9 . 27 51 9 12 Melee 96 | . . . . . . . . 18 5 13 . . . 9 3 . . . 34 4 10 Projectile 82 | . . . . . . . . . . . 3 2 . 5 12 9 . 27 17 5 2 AOE 2 | . . . 2 . . . . . . . . . . . . . . . . . . Terrain Rammed . | . . . . . . . . . . . . . . . . . . . . . . Walls Destroyed . | . . . . . . . . . . . . . . . . . . . . . . Machines Disabled . | . . . . . . . . . . . . . . . . . . . . . . Actions | -11 -10 -10 -9 -9 -9 -8 -8 -7 -6 -5 -5 -5 -5 -4 -4 -4 -4 -3 -3 -2 -1 --------- Run | Yrd Mat Min Mat Min Exi Min Mat Fac Fac Fac Ext Cet Arc Fac Upp Upp Zhi Pro Res Res Acc Total 18833 | 33 52 465 320 223 266 180 121 3596 1206 1750 1517 557 265 1001 498 657 182 917 2831 1064 1132 Wait 1989 | . 22 3 3 37 . 66 . 241 122 209 375 343 144 118 8 6 1 58 130 20 83 Move 15701 | 30 30 447 301 171 265 111 119 3145 967 1418 1008 198 119 838 469 621 171 827 2516 951 979 Hop 74 | . . 6 7 3 . 3 2 12 8 8 . . . 2 . 2 . . 7 12 2 Pick Up 31 | 1 . 1 . . 1 . . 5 . 2 . . . 4 2 1 . . 6 3 5 Fast Attach 62 | 2 . 3 3 4 . . . 13 6 7 2 . . 1 . . 2 1 11 5 2 Attach 20 | . . . . . . . . 3 . 2 . . . 2 2 1 . . 4 3 3 Detach 1 | . . . . . . . . 1 . . . . . . . . . . . . . Swap 36 | . . . . 2 . . . 12 7 4 2 . . 1 . . . 2 5 1 . Drop 53 | . . . . . . . . 15 7 2 4 . . 5 2 . 1 3 9 3 2 Fire 602 | . . 5 6 6 . . . 108 39 81 66 16 2 21 12 26 . 26 96 52 40 Melee 154 | . . . . . . . . 30 5 17 6 . . 9 3 . 7 . 47 14 16 Ram . | . . . . . . . . . . . . . . . . . . . . . . Kick . | . . . . . . . . . . . . . . . . . . . . . . Crush . | . . . . . . . . . . . . . . . . . . . . . . Escape Stasis 110 | . . . . . . . . 11 45 . 54 . . . . . . . . . . Rewire . | . . . . . . . . . . . . . . . . . . . . . . Trap . | . . . . . . . . . . . . . . . . . . . . . . Miscellaneous . | . . . . . . . . . . . . . . . . . . . . . . Route ------- -11/Scrapyard -10/Materials -10/Mines -9/Materials -9/Mines (discovered 2 exits: *Mat / *Exi) -9/Exiles -8/Mines -8/Materials (discovered 3 exits: *Fac x3) -7/Factory (discovered 6 exits: *Fac x4 / *Low x2) -6/Factory -5/Factory (discovered 5 exits: *Fac / *Upp x2 / *Ext x2) -5/Extension (discovered 2 exits: *Fac / *Cet) -5/Cetus -5/Archives (discovered 3 exits: *Fac / *Hub x2) -4/Factory (discovered 4 exits: *Res / *Upp x2 / Arm) -4/Upper Caves -4/Upper Caves -4/Zhirov -3/Proximity Caves -3/Research (discovered 2 exits: *Res / *Tes) -2/Research (discovered 3 exits: *Acc x3) -1/Access To Epsilon Eridani History --------- Turn | Location | Event 7 | -11/Scrapyard | Identified exit to Materials 7 | -11/Scrapyard | Discovered exit to Materials (range 15) 20 | -11/Scrapyard | Entered Materials 20 | -10/Materials | Evolved 1 slot: Propulsion x1 21 | -10/Materials | Met a group of wandering Federalists 45 | -10/Materials | Identified exit to Mines 45 | -10/Materials | Discovered exit to Mines (range 16) 58 | -10/Materials | Entered Mines 58 | -10/Mines | Accompanied by 3 allies 119 | -10/Mines | Found a damaged Exp. Sensor Array with a note attached 170 | -10/Mines | Received a Rocket Launcher from a helpful Derelict 192 | -10/Mines | Found the Drone Emporium 223 | -10/Mines | A weapon hastily lodged in a ceiling crevice suddenly fell to the ground 259 | -10/Mines | Identified exit to Materials 259 | -10/Mines | Discovered exit to Materials (range 9) 262 | -10/Mines | Entered Materials 262 | -9/Materials | Evolved 2 slots: Propulsion x1, Utility x1 308 | -9/Materials | Build established: Hacker-Mutant 402 | -9/Materials | Identified exit to Mines 402 | -9/Materials | Discovered exit to Mines (range 8) 405 | -9/Materials | Entered Mines 413 | -9/Mines | Lost 5 parts (1p3n1w) 487 | -9/Mines | Identified exit to Materials 487 | -9/Mines | Discovered exit to Materials (range 9) 526 | -9/Mines | Deemed a non-threat by the Exiles lab entrance 526 | -9/Mines | Identified exit to Exiles 526 | -9/Mines | Discovered exit to Exiles (range 5) 527 | -9/Mines | Entered Exiles 535 | -9/Exiles | Met 8R-AWN 540 | -9/Exiles | Met EX-HEX 549 | -9/Exiles | Met EX-BIN 554 | -9/Exiles | Aligned with FarCom system 555 | -9/Exiles | Given EX-Vault access code 564 | -9/Exiles | Opened EX-Vault 572 | -9/Exiles | Warned to stay clear of 0b10 Research branches 579 | -9/Exiles | Found Field Lobotomy Kit 594 | -9/Exiles | Met EX-DEC 605 | -9/Exiles | Identified exit to Mines 605 | -9/Exiles | Discovered exit to Mines (range 14) 611 | -9/Exiles | Left Exiles lab with Field Lobotomy Kit 611 | -9/Exiles | Entered Mines 712 | -8/Mines | Discovered exit to Materials (range 7) 714 | -8/Mines | Entered Materials 714 | -8/Materials | Evolved 2 slots: Utility x2 721 | -8/Materials | Build established: Scavenger-Sprinter 728 | -8/Materials | Identified exit to Factory 753 | -8/Materials | Entered Factory 753 | -7/Factory | Evolved 2 slots: Utility x2 1049 | -7/Factory | Identified exit to Factory 1049 | -7/Factory | Discovered exit to Factory (range 16) 1056 | -7/Factory | Identified exit to Lower Caves 1056 | -7/Factory | Discovered exit to Lower Caves (range 16) 1105 | -7/Factory | Build established: Hacker-Sprinter 1135 | -7/Factory | Assimilated P-60 Hacker with FLK Orb 1252 | -7/Factory | Discovered exit to Factory (range 6) 1285 | -7/Factory | Repaired Flight Unit 1328 | -7/Factory | Hacker 4a assimilated hostile W-25 Informer 1490 | -7/Factory | Discovered exit to Factory (range 7) 1693 | -7/Factory | Discovered exit to Lower Caves (range 4) 1723 | -7/Factory | Garrison activated, responded to threat 1975 | -7/Factory | Discovered exit to Factory (range 7) 2266 | -7/Factory | Entered another Factory area 2266 | -6/Factory | Evolved 2 slots: Utility x2 2447 | -6/Factory | Repaired Lgt. Nuclear Core 2597 | -6/Factory | Build established: Hacker-Scout 2787 | -6/Factory | Repaired Assault Cannon 2808 | -6/Factory | Identified exit to Factory 2808 | -6/Factory | Discovered exit to Factory (range 21) 2817 | -6/Factory | Entered another Factory area 2817 | -5/Factory | Evolved 2 slots: Utility x2 3001 | -5/Factory | Fabricated Hacking Suite (x1) 3040 | -5/Factory | Fabricated Hacking Suite (x1) 3093 | -5/Factory | Repaired Nuclear Pulse Thruster 3161 | -5/Factory | Identified exit to Upper Caves 3161 | -5/Factory | Discovered exit to Upper Caves (range 18) 3269 | -5/Factory | Identified exit to Factory 3269 | -5/Factory | Discovered exit to Factory (range 18) 3294 | -5/Factory | Build established: Wizard-Scout 3417 | -5/Factory | Repaired Xenon Bombardment Thruster 3435 | -5/Factory | Repaired VTOL Module 3668 | -5/Factory | Discovered exit to Upper Caves (range 18) 3683 | -5/Factory | Identified exit to Extension 3702 | -5/Factory | Entered Extension 3743 | -5/Extension | Rescued a captive Derelict 3749 | -5/Extension | Rescued A7 3823 | -5/Extension | Rescued a captive Derelict 3825 | -5/Extension | Rescued a captive Derelict 3882 | -5/Extension | Rescued a captive Derelict 3884 | -5/Extension | Rescued a captive Derelict 4124 | -5/Extension | Spotted B-75 Beast 4141 | -5/Extension | Destroyed B-75 Beast 4147 | -5/Extension | Spotted B-75 Beast 4168 | -5/Extension | Allies destroyed B-75 Beast 4320 | -5/Extension | Rescued a captive Derelict 4352 | -5/Extension | Rescued a captive Derelict 4353 | -5/Extension | Rescued a captive Derelict 4404 | -5/Extension | Rescued a captive Derelict 4406 | -5/Extension | Rescued a captive Derelict 4420 | -5/Extension | Rescued a captive Derelict 4500 | -5/Extension | Discovered exit to Factory (range 10) 4500 | -5/Extension | Identified exit to Cetus 4500 | -5/Extension | Discovered exit to Cetus (range 6) 4585 | -5/Extension | Entered Cetus 4585 | -5/Cetus | Accompanied by 11 allies (A7) 4590 | -5/Cetus | Acquired a Cetus Manufacturing Module code from A7 4590 | -5/Cetus | Spotted Cetus Guard 4590 | -5/Cetus | Spotted Cetus Guard 4593 | -5/Cetus | Spotted Cetus Guard 4596 | -5/Cetus | Allies destroyed Cetus Guard 4596 | -5/Cetus | Spotted Cetus Guard 4600 | -5/Cetus | Allies destroyed Cetus Guard 4609 | -5/Cetus | Allies destroyed Cetus Guard 4621 | -5/Cetus | Allies destroyed Cetus Guard 4746 | -5/Cetus | Started Cetus Manufacturing Module 4771 | -5/Cetus | Manufactured an Enhanced Grunt 4796 | -5/Cetus | Manufactured an Enhanced Grunt 4821 | -5/Cetus | Manufactured an Enhanced Grunt 4846 | -5/Cetus | Manufactured an Enhanced Grunt 4871 | -5/Cetus | Manufactured an Enhanced Grunt 4921 | -5/Cetus | Escorted A7 to Cetus Mainframe 4946 | -5/Cetus | Identified exit to Archives 4946 | -5/Cetus | Discovered exit to Archives (range 22) 5018 | -5/Cetus | Entered Archives 5018 | -5/Archives | Accompanied by 15 allies (A7) 5023 | -5/Archives | Received a hacking code to weaken MAIN.C 5057 | -5/Archives | Discovered exit to Factory (range 15) 5067 | -5/Archives | Identified exit to Hub_04(d) 5067 | -5/Archives | Discovered exit to Hub_04(d) (range 13) 5071 | -5/Archives | Discovered exit to Hub_04(d) (range 14) 5201 | -5/Archives | Entered Factory 5201 | -4/Factory | Accompanied by 12 allies 5201 | -4/Factory | Evolved 2 slots: Utility x2 5210 | -4/Factory | Identified exit to Upper Caves 5210 | -4/Factory | Identified exit to Armory 5278 | -4/Factory | Spotted B-86 Titan 5340 | -4/Factory | Identified exit to Research 5340 | -4/Factory | Discovered exit to Research (range 8) 5466 | -4/Factory | Repaired Lgt. Nuclear Core 5490 | -4/Factory | Fabricated Lrn. Sensor Array? 5647 | -4/Factory | Entered Upper Caves 5652 | -4/Upper Caves | Learned Research emergency access door positions 5653 | -4/Upper Caves | Learned Research emergency access door positions 5846 | -4/Upper Caves | Identified exit to Upper Caves 5846 | -4/Upper Caves | Discovered exit to Upper Caves (range 18) 5857 | -4/Upper Caves | Entered another Upper Caves area 5917 | -4/Upper Caves | Ambushed by research squad 6096 | -4/Upper Caves | Identified exit to Zhirov 6096 | -4/Upper Caves | Discovered exit to Zhirov (range 5) 6114 | -4/Upper Caves | Spotted B-86 Titan 6136 | -4/Upper Caves | Entered Zhirov 6137 | -4/Zhirov | Identified exit to Proximity Caves 6137 | -4/Zhirov | Discovered exit to Proximity Caves (range 3) 6144 | -4/Zhirov | Met Zhirov 6185 | -4/Zhirov | Found Alien Artifact 6185 | -4/Zhirov | Identified Integrated Reactor 6185 | -4/Zhirov | Installed Integrated Reactor, increased core energy generation (+10) 6202 | -4/Zhirov | Learned location of Quarantine (-2) 6202 | -4/Zhirov | Learned location of Testing (-3) 6202 | -4/Zhirov | Learned location of Command (-1) 6205 | -4/Zhirov | Zhirov requested help retrieving the SGEMP Prototype 6220 | -4/Zhirov | Entered Proximity Caves 6247 | -3/Proximity Caves | Spotted B-86 Titan 6602 | -3/Proximity Caves | Discovered exit to Research (range 9) 6622 | -3/Proximity Caves | Entered Research 6622 | -3/Research | Evolved 2 slots: Utility x2 6911 | -3/Research | Repaired Lgt. Nuclear Core 6983 | -3/Research | Spotted B-86 Titan 7018 | -3/Research | Spotted B-86 Titan 7108 | -3/Research | Garrison activated, responded to threat 7181 | -3/Research | Identified exit to Research 7181 | -3/Research | Discovered exit to Research (range 18) 7408 | -3/Research | Build established: Hacker-Scout 7559 | -3/Research | Identified exit to Testing 7559 | -3/Research | Discovered exit to Testing (range 9) 7590 | -3/Research | Assimilated Y-72 Warden with FLK Orb 7593 | -3/Research | Assimilated P-80 Master with FLK Orb 7596 | -3/Research | Assimilated P-80 Master with FLK Orb 7599 | -3/Research | Assimilated H-77 Assassin with FLK Orb 7775 | -3/Research | Repaired Xenon Bombardment Thruster 7956 | -3/Research | Spotted B-86 Titan 7958 | -3/Research | Entered another Research area 7958 | -2/Research | Evolved 2 slots: Utility x2 8337 | -2/Research | Identified exit to Access 8477 | -2/Research | Entered Access 8477 | -1/Access | Evolved 2 slots: Propulsion x1, Utility x1 8604 | -1/Access | Garrison activated, responded to threat 8654 | -1/Access | Destroyed 7 combat bots 8960 | -1/Access | Lost 4 parts (2n2u) 9015 | -1/Access | Identified exit to Surface 9015 | -1/Access | Discovered exit to Surface (range 6) 9017 | *** | Escaped! Last Messages --------------- P-80 Master Adv. Heat Sink blasted off. Imp. Targeting Computer destroyed. Longscan Aggregator disabled. Xenon Bombardment Thruster destroyed. Lyr. Light Armor Plating destroyed. Q-thruster destroyed. Acquired Xenon Bombardment Thruster. K-01 Serf collects debris. System corrupted: Substantial component data lost. K-01 Serf destroyed. System corrupted: Matter fused (-9). Enh. Hardcell Cannon destroyed. ALERT: Suspicious intruders detected, dispatching Cutter reinforcements to area. Terminal disabled. K-01 Serf collects debris. Connecting with Terminal... >>Open(Door) Sealed Barrier opened. The Access Shell folds into the floor. EXIT=FOUND: SURFACE Map ----- +----------------------------------------------------+ | ????????????????????? # ?????????????????????## | | ????????????????????? # ?? #################### | | ?????????????????????## ####################### | | ????????????????????? | | ????????????????????? | | ????????????????????? | | ????????????????????? | | ?????????????????????????? ############ ####### | | ?????????????????????????? ############ ####### | | ?????????????????????????????????????## ##????? | | ?????????????????????????????????????## ##????? | | ?????????????????????????????????????## ##????? | | ?????????????????????????????????????## ##????? | | ?????????????????????????????????????## ##????? | | ?????????????????????BB????BB????????## ##????? | | ?????????????????????BB????BB????????## ##????? | | ?????????????????????????????????????## ##????? | | ?????????????????????????????????????## ####### | | ?????????????????????????????????????## ####### | | ??????????????????##"????????"##?????## | | ??????????????????##""""""""""##?????## | | ??????????????????## ##?????## | | ??????????????????## ######### "" | | ??????????????????## ########## "" | | ??????????????????## "" ### [# p T" ! | | ??????????????????## "@ ### # """ | | ??????????????????## ### + "" | | ??????????????????## ### # | | ?????????????????### ### # | | ?????????????????### ### # | | ?????????????????## ## ! # !! | | ?????????????????###"" ### # !! | | ?????????????????###"" ### # !! | | ??????????????????##"" ### # ######## | | ??????????????????##T ### # ######## | | ??????????????????##"" ########## ###????? | | ?????????????????###"" ########## ###????? | | ?????????## ?????###"" ######### ##????? | | ?????????## H ##????? | | ?????????## R % ##????? | | ?????????#####+######################## ##????? | | ????????? ############################????? | | ?????????????????????????????????????########????? | | ?????????????????????????????????????????????????? | | ?????????????????????????????????????????????????? | | ?????????????????????????????????????????????????? | | ?????????????????????????????????????????????????? | | ?????????????????????????????????????????????????? | | ?????????????????????????????????????????????????? | | ?????????????????????????????????????????????????? | +----------------------------------------------------+ Best States ------------- Heat Dissipation 52 Energy Generation 31 Energy Capacity 315 Matter Stores 300 Matter Capacity 300 Sight Range 22 Robot Scan Range 18 Terrain Scan Density 10 Armor Coverage 150 Resistance: KI 35 Resistance: TH 35 Resistance: EX 35 Resistance: EM 35 Resistance: I 35 Resistance: S 35 Resistance: P 35 Evasion (%) 64 Targeting Accuracy 58 Armor Integrity Analysis 40 Offensive Hacking 94 Defensive Hacking 12 Authchip Count 2 Item Schematics ----------------- Hacking Suite | -7/Factory | Hacked Xenon Bombardment Thruster | -5/Factory | Hacked Hvy. Gauss Cannon | -5/Factory | Hacked Lrn. Sensor Array | -4/Factory | Hacked Assault Drone Bay | -4/Zhirov | Free Exp. Heat Sink | -4/Zhirov | Free Exp. Optical Array | -4/Zhirov | Free Imp. Arc Thrower | -4/Zhirov | Free Robot Schematics ------------------ None Fabricated ------------ Hacking Suite | x1 | -5/Factory | Authchip Hacking Suite | x1 | -5/Factory | Authchip Lrn. Sensor Array | x2 | -4/Factory Repaired ---------- Flight Unit | 25% | -7/Factory Lgt. Nuclear Core | 54% | -6/Factory Assault Cannon | 33% | -6/Factory Nuclear Pulse Thruster | 46% | -5/Factory Xenon Bombardment Thruster | 23% | -5/Factory VTOL Module | 36% | -5/Factory Lgt. Nuclear Core | 34% | -4/Factory Lgt. Nuclear Core | 44% | -3/Research Xenon Bombardment Thruster | 6% | -3/Research Alien Tech Used ----------------- Integrated Reactor Achievements -------------- Perfect Aim Challenges ------------ None Game ------ Seed BeamCoilCharger Manual? 0 Play Time 02:23:40 Cumulative 110.6 hours Start 2025.05.10 @ 12:09:42 End 2025.05.10 @ 14:40:50 Sessions 1 Manual Loads 0 Difficulty Explorer Special Mode None Game No. 127 Rogue 18 Adventurer 98 Explorer 11 Win Type 0 Total 22 Types 5/0/9/0/3/0/4/1/0/0 Lore% 38 Gallery% 37 Achievement% 62 Wizard Run 0 Options --------- Layout 0 ASCII 0 Keyboard 0 Movement Mouse Keybinds 0 Fullscreen 2 Font 12/Smallcaps Map View 83x54 Zoom Use 0% Tactical HUD 0 Map Filters NONE Filters NONE Steam 1 RUN: adb9aeda-2b35-43eb-a14e-cf4bb8ead161